Cogmind - Beta 16.1 @@@ ROGUE MODE // 2026.02.25 @ 21:08:13 // AFD2020/Player2 Player: FAQ Result: Destroyed by G-67 Veteran with Field Laser Performance ------------- Evolutions (7) 3500 Regions Visited (16) 3200 Robots Destroyed (164) 820 Value Destroyed (7544) 7544 Prototype IDs (16) 320 Alien Tech Used (0) 0 Bonus (10626) 10626 TOTAL SCORE: 26010 Bonus ------- Triggered Max Security 1000 High Alert Combat Kills 2658 Follower Combat Kills 4998 Entered Garrisons 200 Entered DSFs 500 Aligned with FarCom 300 Met R17 at Cetus 500 Met R17 at Research 2000 Friendly Fire -1530 Cogmind --------- Core Integrity 0/1300 Matter 218/300 Energy 257/340 System Corruption 8% Temperature Hot (249) Movement Walking (120) Location -3/Testing Parts ------- > --- POWER (2) -------- Particle Reactor > --- PROPULSION (6) --- Flexi-carbon Leg Flexi-carbon Leg Flexi-carbon Leg Centrium Leg > --- UTILITY (9) ------ Advanced Cooling System Large Storage Unit Improved Targeting Computer Advanced Target Analyzer Advanced Target Analyzer Graphene Brace Improved Thermal Shield Improved System Shield > --- WEAPON (4) ------- Hardcell Cannon Hardcell Cannon Hardcell Cannon Enhanced Hardcell Cannon > --- INVENTORY (15) --- Advanced Heat Sink Advanced Cooling System High-capacity Matter Pod (200) Centrium Medium Armor Plating Centrium Medium Armor Plating Supersonic Drone Bay (1/1) Heavy Plasma Cannon Railgun Peak State ------------ > --- POWER ------------ Particle Reactor Light Quantum Reactor > --- PROPULSION ------- Thunder Leg Centrium Leg Heavy Shield Leg Heavy Shield Leg > --- UTILITY ---------- Advanced Heat Sink Large Storage Unit Improved Targeting Computer Advanced Target Analyzer Advanced Target Analyzer Improved Transmission Jammer Centrium Medium Armor Plating Graphene Brace Improved System Shield > --- WEAPON ----------- Railgun Railgun Mass Driver Hardcell Cannon > --- INVENTORY -------- Flexi-carbon Leg Flexi-carbon Leg Flexi-carbon Leg High-capacity Matter Pod Transmission Jammer Centrium Medium Armor Plating Centrium Medium Armor Plating Improved Thermal Shield Long-range Tractor Beam Supersonic Drone Bay Heavy Plasma Cannon Railgun Hardcell Cannon Hardcell Cannon Hardcell Cannon [Rating: 153] Favorites ----------- Power Quantum Reactor Engine Angular Momentum Engine Power Core Neutrino Core Reactor Quantum Reactor Propulsion Flexi-carbon Leg Leg Flexi-carbon Leg Utility Medium Storage Unit Device Improved Shield Generator Storage Medium Storage Unit Processor Improved Targeting Computer Hackware Improved System Shield Protection Centrium Medium Armor Plating Weapon Heavy Assault Cannon Energy Gun Field Laser Energy Cannon Heavy Plasma Cannon Ballistic Gun Gauss Rifle Ballistic Cannon Heavy Assault Cannon Launcher Heavy Missile Launcher Build | -11 -10 -9 -9 -9 -8 -8 -7 -6 -6 -6 -5 -4 -4 -3 -3 -3 ------- Run | Yrd Mat Mat Min Exi Min Mat Fac Fac Ext Cet Fac Fac DSF Res Gar Tes Slots Evolved 14 | . . 2 . . . 2 2 2 . . 2 2 . 2 . . Power 1 | . . . . . . . . . . . . 1 . . . . Propulsion 4 | . . 1 . . . 1 . . . . 1 . . 1 . . Utility 7 | . . 1 . . . 1 1 1 . . 1 1 . 1 . . Weapon 2 | . . . . . . . 1 1 . . . . . . . . Parts Attached 151 | 7 2 9 1 1 5 4 12 18 10 10 32 2 7 11 15 5 Power 15 | 1 1 2 . . . . 2 2 1 1 . 1 . 2 1 1 Engine 8 | 1 1 2 . . . . 2 1 1 . . . . . . . Core 2 | . . . . . . . . 1 . . . 1 . . . . Reactor 5 | . . . . . . . . . . 1 . . . 2 1 1 Propulsion 52 | 2 . 4 . . 3 . 6 6 7 1 11 1 1 6 3 1 Treads . | . . . . . . . . . . . . . . . . . Leg 52 | 2 . 4 . . 3 . 6 6 7 1 11 1 1 6 3 1 Wheel . | . . . . . . . . . . . . . . . . . Hover . | . . . . . . . . . . . . . . . . . Flight . | . . . . . . . . . . . . . . . . . Utility 47 | 2 1 2 . 1 1 2 2 8 2 3 11 . 3 3 5 1 Device 22 | 1 . 1 . . 1 1 . 4 2 . 6 . . 2 4 . Storage 6 | 1 1 . . 1 . . . 1 . . . . 1 . . 1 Processor 6 | . . . . . . . . 1 . . 1 . 2 1 1 . Hackware 4 | . . . . . . . 1 1 . . 2 . . . . . Protection 9 | . . 1 . . . 1 1 1 . 3 2 . . . . . Artifact . | . . . . . . . . . . . . . . . . . Weapon 37 | 2 . 1 1 . 1 2 2 2 . 5 10 . 3 . 6 2 Energy Gun 1 | . . . . . . 1 . . . . . . . . . . Energy Cannon 1 | . . . . . . . . . . . 1 . . . . . Ballistic Gun 21 | 2 . 1 . . 1 . 1 . . 3 9 . 2 . 2 . Ballistic Cannon 12 | . . . . . . 1 . 2 . 2 . . 1 . 4 2 Launcher 2 | . . . 1 . . . 1 . . . . . . . . . Special Weapon . | . . . . . . . . . . . . . . . . . Impact Weapon . | . . . . . . . . . . . . . . . . . Slashing Weapon . | . . . . . . . . . . . . . . . . . Piercing Weapon . | . . . . . . . . . . . . . . . . . Special Melee Weapon . | . . . . . . . . . . . . . . . . . Unidentified Prototypes 8 | . . 2 . 1 . . . 2 . 2 . . . . . 1 Parts Lost 48 | . . . 1 . . . . 3 3 9 14 . . 3 5 10 Power 2 | . . . . . . . . . . . . . . 1 . 1 Propulsion 11 | . . . 1 . . . . . . 3 3 . . . 1 3 Utility 17 | . . . . . . . . 2 3 2 4 . . 2 2 2 Weapon 18 | . . . . . . . . 1 . 4 7 . . . 2 4 Highest Loss Streak 9 | . . . 1 . . . . 1 3 9 8 . . 2 2 6 To Critical Strikes 3 | . . . . . . . . . . 3 . . . . . . Average Backups 9 | 1 . 7 9 9 10 9 9 9 9 8 9 9 12 14 14 13 Power . | . . 1 2 1 1 1 . . 1 1 1 . . . . . Propulsion 1 | . . 1 . . . . . 1 2 1 . 2 3 2 1 . Utility 5 | . . 2 5 5 6 5 5 5 4 3 7 6 6 6 7 7 Weapon 2 | . . . 1 1 1 2 2 1 1 1 . 1 3 5 5 5 Tool/Special . | . . . . . . . . . . . . . . . . . Unused Backups 19 | . 4 2 . 1 1 2 4 1 1 . 2 . . . . 1 Power 5 | . 1 . . . 1 1 1 . . . 1 . . . . . Propulsion 2 | . 1 1 . . . . . . . . . . . . . . Utility 8 | . 1 1 . 1 . . 1 1 1 . 1 . . . . 1 Weapon 3 | . 1 . . . . 1 1 . . . . . . . . . Tool/Special 1 | . . . . . . . 1 . . . . . . . . . Average Slot Usage (%) 94 | . 100 99 100 100 99 83 91 91 91 83 97 94 99 97 94 92 Engine 5 | . 14 11 11 11 11 9 7 5 6 4 . . . . . . Reactor 2 | . . . . . . . . . . 1 4 5 5 7 9 8 Leg 27 | . 28 32 33 33 33 27 29 26 26 25 27 26 26 28 23 22 Device 12 | . 14 14 11 11 10 17 14 12 13 10 12 5 5 9 13 14 Storage 6 | . 14 11 11 11 11 9 7 6 6 6 5 5 5 4 4 4 Processor 4 | . . . . . . . . 5 5 . 1 5 11 13 14 14 Hackware 4 | . . . . . . . 7 6 5 . 6 5 5 4 4 4 Protection 7 | . . 6 11 11 11 9 7 6 5 12 12 15 13 6 4 2 Ballistic Gun 9 | . 28 22 22 22 22 4 6 2 . 6 12 21 18 14 8 2 Ballistic Cannon 9 | . . . . . . 6 7 16 19 13 8 . 2 4 9 15 Peak Build Rating 153 | 7 7 17 16 24 19 25 42 58 57 80 102 108 118 128 153 146 Average Rating 64 | 5 7 13 15 16 18 24 40 54 55 62 95 104 114 122 141 136 On Entrance 54 | . 7 7 16 16 17 19 25 42 56 51 80 99 108 117 127 146 Avg Prop Armor Cover (%) . | . . . . . . . . . . . . . . . . . Naked Turns . | . . . . . . . . . . . . . . . . . Heaviest Build 102 | 11 16 26 26 26 26 38 48 58 57 77 84 84 99 101 102 102 Greatest Support 173 | 20 20 30 30 30 30 30 58 70 70 67 98 103 103 123 173 153 Greatest Overweight (x) 1 | . . . . . . 1 1 . . 1 1 . 1 . . 1 Average Overweight (x) . | . . . . . . . . . . . . . . . . . Largest Inventory Capacity 15 | 8 10 10 10 10 10 10 10 10 10 10 10 10 15 15 15 15 Average Capacity 10 | 7 9 10 10 9 10 10 10 10 10 10 10 10 13 15 15 15 Most Carried 15 | 3 3 10 10 10 10 10 10 10 10 10 10 10 15 15 15 15 Average Carried 9 | 1 . 7 9 9 9 9 9 9 9 8 9 9 12 14 14 13 Final Capacity 15 | 8 10 10 10 10 10 10 10 10 10 10 10 10 15 15 15 15 Final Carried 15 | 3 2 10 9 10 10 10 10 9 10 7 10 10 15 15 15 8 Class Distribution -------------------- 46% | Scavenger-Tank 18% | Scavenger-Mutant 15% | Scavenger-Gunner 12% | Scavenger-Skirmisher 3% | Mutant Dominant Class ---------------- Mutant | -10/Materials Scavenger-Mutant | -9/Materials Scavenger-Mutant | -9/Mines Scavenger-Mutant | -9/Exiles Scavenger-Mutant | -8/Mines Scavenger-Mutant | -8/Materials Scavenger-Tank | -7/Factory Scavenger-Tank | -6/Factory Scavenger-Skirmisher | -6/Extension Scavenger-Tank | -6/Cetus Scavenger-Tank | -5/Factory Scavenger-Tank | -4/Factory Scavenger-Tank | -4/DSF Scavenger-Gunner | -3/Research Scavenger-Gunner | -3/Garrison Scavenger-Gunner | -3/Testing Resources | -11 -10 -9 -9 -9 -8 -8 -7 -6 -6 -6 -5 -4 -4 -3 -3 -3 ----------- Run | Yrd Mat Mat Min Exi Min Mat Fac Fac Ext Cet Fac Fac DSF Res Gar Tes Matter Collected 9748 | 254 114 495 60 . 122 92 922 1050 1233 235 2139 . 433 281 1343 975 Remotely 2056 | . . . . . . . . . 200 . 453 . . . 658 745 Salvage Created 7126 | 132 447 396 . . 131 64 485 555 1167 213 1502 . 89 425 855 665 Parts 298 | 7 21 28 . . 12 7 20 31 37 11 70 . 3 15 25 11 Haulers Intercepted 5 | . . 2 . . . . 2 . . . 1 . . . . . Recyclers Shooed 1 | . . . . . . . . . . . 1 . . . . . Parts Field Recycled . | . . . . . . . . . . . . . . . . . Retrieved Matter . | . . . . . . . . . . . . . . . . . Parts Self-Destructed . | . . . . . . . . . . . . . . . . . Prevented . | . . . . . . . . . . . . . . . . . Parts Restored . | . . . . . . . . . . . . . . . . . Kills | -11 -10 -9 -9 -9 -8 -8 -7 -6 -6 -6 -5 -4 -4 -3 -3 -3 ------- Run | Yrd Mat Mat Min Exi Min Mat Fac Fac Ext Cet Fac Fac DSF Res Gar Tes Combat Hostiles Destroyed 116 | . 6 5 1 . 4 3 11 18 15 4 18 . 1 3 14 13 Melee 1 | . . . . . . . . . . . 1 . . . . . Guns 41 | . 6 5 . . 4 . 3 . . 1 11 . 1 2 8 . Cannons 59 | . . . . . . 1 7 12 10 3 6 . . 1 6 13 AOE 15 | . . . 1 . . 2 1 6 5 . . . . . . . Classes Destroyed 19 | 2 3 2 1 . . 1 5 1 2 . 2 . . . . . Worker 6 | . . . . . . . 1 1 2 . . . . 2 . . Builder 5 | . . 1 . . . . 1 1 . . 1 . . 1 . . Tunneler 3 | 2 . . . . . . . . 1 . . . . . . . Hauler 5 | . . 2 . . . . 2 . . . 1 . . . . . Recycler 14 | 1 2 1 . . . . . . 6 . 3 . . 1 . . Mechanic 2 | . . . . . . . . 1 . . . . . . . 1 Operator 4 | . . . . . . . 1 1 . . 2 . . . . . Watcher 9 | . 1 2 . . . . . 1 . 2 2 . . 1 . . Swarmer 16 | . 1 2 . . 2 2 . 6 3 . . . . . . . Saboteur 2 | . . . . . . . . . . . 1 . . . . 1 Grunt 51 | . 5 3 . . 2 . 6 8 7 . 4 . . 3 5 8 Brawler 6 | . . . . . . . . . 2 . 2 . . . . 2 Duelist 5 | . . . . . . . 1 . 1 . 1 . . . . 2 Protector 1 | . . . . . . . . . 1 . . . . . . . Sentry 13 | . . . . . . 1 2 1 1 . 1 . . . 7 . Specialist 1 | . . . . . . . . . . . 1 . . . . . Hunter 9 | . . . . . . . 1 3 . . 4 . 1 . . . Programmer 7 | . . . . . . . 1 . . . 4 . . . 2 . Cetus Guard 4 | . . . . . . . . . . 4 . . . . . . Assembled 1 | . . . 1 . . . . . . . . . . . . . Savage 1 | . . . . . . . . . 1 . . . . . . . Best Kill Streak 14 | 3 4 3 1 . 2 2 3 5 11 4 4 . 1 4 3 14 Combat Bots Only 13 | . 3 2 1 . 2 2 3 4 6 3 4 . 1 2 3 13 Max Kills in Single Turn 4 | 1 1 1 1 . 2 2 2 3 4 1 2 . 1 3 1 2 Gunslinging 1 | . . . . . 1 . . . . . . . . . . . Exploded 3 | . . . 1 . . 2 1 3 2 . . . . . . . Melee 1 | . . . . . . . . . . . 1 . . . . . Uniques/NPCs Destroyed . | . . . . . . . . . . . . . . . . . Combat | -11 -10 -9 -9 -9 -8 -8 -7 -6 -6 -6 -5 -4 -4 -3 -3 -3 -------- Run | Yrd Mat Mat Min Exi Min Mat Fac Fac Ext Cet Fac Fac DSF Res Gar Tes Hostile Shots Fired 963 | . 34 39 5 . 19 8 93 113 46 55 176 . 33 18 213 111 Missed 270 | . 6 18 1 . 6 5 32 33 19 17 34 . 11 4 53 31 Deflected 1 | . . . . . . . . . . . . . . . 1 . Hits 693 | . 28 21 4 . 13 3 61 80 27 38 142 . 22 14 160 80 Melee 8 | . . . . . . . . . 2 . 4 . . . . 2 Projectile 685 | . 28 21 4 . 13 3 61 80 25 38 138 . 22 14 160 78 AOE 5 | . . . 5 . . . . . . . . . . . . . Critical Strikes 34 | . 1 . . . . . 1 1 1 9 5 . . 2 8 6 Actively Blocked 13 | . . . . . . . . . . . . . . . 7 6 Part Disruptions 3 | . . . . . . . . . . . . . 3 . . . Damage Taken 12996 | . 295 289 213 . 182 26 627 1187 608 1070 3008 . 539 477 3251 1224 Core 952 | . 29 27 . . 28 . 74 58 . 82 149 . 49 107 167 182 Absorbed by Shields 1179 | . . 13 . . . 10 252 273 . . 631 . . . . . Ignored by Resistances 713 | . . . . . . . . . . . . . . . 283 430 Regen/Repaired (Parts) 425 | . . . . . . . 17 220 . . 188 . . . . . Core Remaining (%) 65 | 100 13 . . . 53 91 74 . . 67 45 . 77 . . . Volleys Fired 443 | 5 34 43 5 . 8 7 50 51 35 16 85 . 20 14 47 23 Largest 4 | 2 2 2 2 . 2 2 2 3 3 3 4 . 4 4 4 4 Hottest 223 | 40 40 43 43 . 43 86 78 130 130 130 169 . 152 152 212 223 Shots Fired 1277 | 10 68 86 9 . 16 9 98 125 83 47 320 . 77 56 185 88 Gun 679 | 10 68 86 8 . 16 4 48 6 . 10 215 . 76 42 87 3 Cannon 574 | . . . . . . 4 48 109 75 35 105 . 1 14 98 85 Launcher 24 | . . . 1 . . 1 2 10 8 2 . . . . . . Special . | . . . . . . . . . . . . . . . . . Kinetic 1230 | 10 68 86 8 . 16 6 96 115 75 45 299 . 77 56 185 88 Thermal 23 | . . . . . . 2 . . . . 21 . . . . . Explosive 24 | . . . 1 . . 1 2 10 8 2 . . . . . . Electromagnetic . | . . . . . . . . . . . . . . . . . Robot Hit Streak 25 | 2 5 10 3 . 8 3 6 9 11 7 10 . 6 6 25 10 Robot Miss Streak 6 | 1 5 4 2 . 2 2 5 3 3 2 6 . 4 6 3 5 Penetration Max 1 | . . . . . . . 1 . 1 1 1 . . 1 1 . Secondary Targets 4 | . 2 . . . 1 . . . . . . . 1 . . . Max Gunslinging Chain 1 | . 1 . . . 1 . . . . . . . 1 . . . Shots Hit Robots 684 | 6 37 46 5 . 12 5 43 52 47 29 171 . 45 29 110 47 Core Hits 364 | 5 22 22 5 . 8 4 25 49 52 17 63 . 13 14 36 29 Critical Kills 14 | . . . . . . . . . . 1 5 . 1 4 3 . Critical Parts Destroyed 23 | . . . . . . . . . . 1 6 . 7 4 5 . Critical Strikes 89 | . . . . . . . 3 5 4 5 19 . 9 9 20 15 Destroy 46 | . . . . . . . 1 . . 2 13 . 9 8 13 . Blast 43 | . . . . . . . 2 5 4 3 6 . . 1 7 15 Melee Attacks . | . . . . . . . . . . . . . . . . . Impact . | . . . . . . . . . . . . . . . . . Slashing . | . . . . . . . . . . . . . . . . . Piercing . | . . . . . . . . . . . . . . . . . Sneak Attacks . | . . . . . . . . . . . . . . . . . Combat Hostiles . | . . . . . . . . . . . . . . . . . Follow-up Attacks . | . . . . . . . . . . . . . . . . . Damage Inflicted 23629 | 54 369 486 225 . 127 380 1880 3474 3424 1190 4410 . 741 802 3562 2505 Guns 7480 | 54 369 486 77 . 127 33 461 37 . 100 2762 . 711 545 1684 34 Cannons 12265 | . . . . . . 180 1145 2008 1644 1004 1648 . 30 257 1878 2471 Explosions 3877 | . . . 141 . . 167 274 1429 1780 86 . . . . . . Melee . | . . . . . . . . . . . . . . . . . Ramming 7 | . . . 7 . . . . . . . . . . . . . Kinetic 19265 | 54 369 486 77 . 127 180 1606 2045 1644 1104 3963 . 741 802 3562 2505 Thermal 574 | . . . . . . 33 94 . . . 447 . . . . . Explosive 3783 | . . . 141 . . 167 180 1429 1780 86 . . . . . . Electromagnetic . | . . . . . . . . . . . . . . . . . Impact . | . . . . . . . . . . . . . . . . . Slashing . | . . . . . . . . . . . . . . . . . Piercing . | . . . . . . . . . . . . . . . . . Highest Corruption 16 | . . . . . . 2 1 . 11 11 16 2 3 1 3 8 Average Corruption 3 | . . . . . . 2 1 . 10 11 2 2 2 1 1 3 Corruption Purged . | . . . . . . . . . . . . . . . . . Corruption Blocked . | . . . . . . . . . . . . . . . . . Effects 68 | . . . . . . 3 7 . 6 12 23 1 4 . 9 3 Message Errors 11 | . . . . . . 1 2 . 1 2 2 . 2 . 1 . Matter Fused 20 | . . . . . . 1 1 . 1 4 10 1 . . 2 . Heat Flow Errors 7 | . . . . . . . . . 2 1 1 . 1 . 1 1 Energy Discharges 7 | . . . . . . . . . . 2 2 . . . 1 2 Parts Rejected 1 | . . . . . . . . . . . . . . . 1 . Parts Fused 2 | . . . . . . . 2 . . . . . . . . . Data Loss (minor) 11 | . . . . . . . 2 . 2 3 3 . . . 1 . Data Loss (major) 4 | . . . . . . 1 . . . . 1 . . . 2 . Misfires 1 | . . . . . . . . . . . 1 . . . . . Alerts 1 | . . . . . . . . . . . . . 1 . . . Weapon Failures 3 | . . . . . . . . . . . 3 . . . . . Overload Shots . | . . . . . . . . . . . . . . . . . Overflow Damage 698 | . . . . . . 36 182 144 224 26 12 . 6 . 30 38 Projectiles 496 | . . . . . . . 122 57 205 26 12 . 6 . 30 38 Explosions 202 | . . . . . . 36 60 87 19 . . . . . . . Melee . | . . . . . . . . . . . . . . . . . Knockbacks 66 | . . . . . . . 3 13 8 . 11 . . 3 14 14 Impact . | . . . . . . . . . . . . . . . . . Kinetic 63 | . . . . . . . 3 13 8 . 11 . . 2 13 13 Secondary 3 | . . . . . . . . . . . . . . 1 1 1 Self-Inflicted Damage 141 | . . . . . . . 83 . . 58 . . . . . . Shots 2 | . . . . . . . 1 . . 1 . . . . . . Rammed . | . . . . . . . . . . . . . . . . . Targets Rammed 1 | . . . 1 . . . . . . . . . . . . . Kicked 1 | . . . 1 . . . . . . . . . . . . . Crushed . | . . . . . . . . . . . . . . . . . Highest Temperature 410 | . 55 13 16 . 38 . 9 70 157 410 360 . 261 278 363 284 Average Temperature 85 | . 27 2 3 . 22 . 4 14 38 137 142 . 109 79 80 102 Received Heat Transfer 2103 | . 138 60 20 . 90 6 127 272 171 18 111 . . 127 612 351 Effects 7 | . . . . . . . . . . 1 3 . . . 1 2 Shutdowns 2 | . . . . . . . . . . 1 . . . . 1 . Energy Bleed 2 | . . . . . . . . . . . . . . . . 2 Interference 3 | . . . . . . . . . . . 3 . . . . . Siege Activations . | . . . . . . . . . . . . . . . . . Martial Activations . | . . . . . . . . . . . . . . . . . Shielding Activations 2 | . . . . . . . . . . . . . . . 2 . Total Turns 25 | . . . . . . . . . . . . . . . 25 . Longest Duration 19 | . . . . . . . . . . . . . . . 19 . Robots Disrupted . | . . . . . . . . . . . . . . . . . Combat Hostiles . | . . . . . . . . . . . . . . . . . Robots Corrupted . | . . . . . . . . . . . . . . . . . Combat Hostiles . | . . . . . . . . . . . . . . . . . Parts Fried 2 | . . 1 . . . . . . . . . . . . . 1 Impact Corruptions 1 | . . . . . . . . . . . . . . . . 1 Robots Melted . | . . . . . . . . . . . . . . . . . Combat Hostiles . | . . . . . . . . . . . . . . . . . Parts Melted 1 | . . . . . . . 1 . . . . . . . . . Heat Transferred 836 | . . . . . . 74 62 . . . 700 . . . . . Parts Sabotaged . | . . . . . . . . . . . . . . . . . Parts Stolen . | . . . . . . . . . . . . . . . . . Parts Stripped . | . . . . . . . . . . . . . . . . . Power Chain Reactions . | . . . . . . . . . . . . . . . . . Alert | -11 -10 -9 -9 -9 -8 -8 -7 -6 -6 -6 -5 -4 -4 -3 -3 -3 ------- Run | Yrd Mat Mat Min Exi Min Mat Fac Fac Ext Cet Fac Fac DSF Res Gar Tes Maximum Alert Level 5 | . . 2 1 . . . 3 4 4 3 4 2 2 1 4 5 Low Security (%) 26 | 100 100 69 . . 100 100 60 . . . 4 . . . . . Level 1 17 | . . 4 100 . . . 13 7 . . 37 . . 99 15 . Level 2 23 | . . 26 . . . . 12 35 36 42 20 100 100 . 34 . Level 3 20 | . . . . . . . 13 35 56 57 21 . . . 24 . Level 4 9 | . . . . . . . . 22 6 . 17 . . . 25 . Level 5 . | . . . . . . . . . . . . . . . . . High Security . | . . . . . . . . . . . . . . . . . Max Security 2 | . . . . . . . . . . . . . . . . 99 Sterilizations 1 | . . . . . . . . . . . . . 1 . . . Peak Influence 1877 | 5 162 603 294 . 104 136 771 1280 1189 751 1413 687 590 376 1179 1877 Initial 687 | . . 46 229 . . 28 . 367 617 658 372 687 459 331 270 663 Average 537 | 1 87 184 269 . 58 64 226 820 822 702 655 672 503 273 769 1658 Influence Increases 9703 | 15 277 919 95 . 174 253 1108 1505 1108 247 1856 . 251 297 1079 519 Destroy 0b10 Robot/C 4880 | . 160 520 60 . 120 140 480 600 560 160 820 . 160 140 620 340 Destroy 0b10 Robot/NC 405 | 15 15 55 . . . 5 50 65 55 10 90 . . 40 . 5 Destroy Leader 922 | . 42 114 10 . 20 40 150 146 80 . 196 . 30 14 40 40 Allied During Kill 1541 | . 51 161 17 . 34 44 158 168 250 42 259 . 46 45 172 94 Successful Hack 174 | . 9 11 . . . 10 45 32 56 . 11 . . . . . Disable Machine 735 | . . 15 . . . . 120 285 45 . 180 . 15 30 45 . Anti-Garrison Action 50 | . . . . . . . . . . . . . . . 50 . Destroy Structure 906 | . . 28 8 . . 14 105 179 47 35 270 . . 28 152 40 Lose Combat Pursuer 90 | . . 15 . . . . . 30 15 . 30 . . . . . Influence Decreases 8771 | 15 166 441 440 244 100 327 358 995 1191 759 1117 747 318 527 260 766 Entered New Map 4333 | . . 65 360 244 . 46 . 383 643 519 293 717 198 259 90 516 Time Decay 3298 | 15 126 356 60 . 100 261 338 562 458 150 604 30 . 238 . . Lost Part 1060 | . 40 20 20 . . 20 20 50 50 90 220 . 120 30 130 250 Lost Ally 80 | . . . . . . . . . 40 . . . . . 40 . Squads Dispatched 61 | . 1 1 . . . 5 10 11 6 . 12 . 1 2 . 12 Investigation 4 | . . . . . . . 2 1 . . . . . 1 . . Extermination 11 | . . . . . . . 4 3 . . 4 . . . . . Reinforcement 24 | . 1 1 . . . 2 4 6 2 . 6 . 1 1 . . Assault 18 | . . . . . . . . . 4 . 2 . . . . 12 Garrison 4 | . . . . . . 3 . 1 . . . . . . . . Intercept . | . . . . . . . . . . . . . . . . . Searches Triggered . | . . . . . . . . . . . . . . . . . Construction Impeded 7 | . . 1 . . . . 1 3 1 . 1 . . . . . Haulers Reinforced 3 | . . . . . . . 1 1 . . 1 . . . . . Active Scanning Responses . | . . . . . . . . . . . . . . . . . Cargo Convoy Interrupts . | . . . . . . . . . . . . . . . . . Stealth | -11 -10 -9 -9 -9 -8 -8 -7 -6 -6 -6 -5 -4 -4 -3 -3 -3 --------- Run | Yrd Mat Mat Min Exi Min Mat Fac Fac Ext Cet Fac Fac DSF Res Gar Tes Distress Signals 14 | . . 3 . . . 1 1 . 3 2 1 . . 3 . . Communications Jammed 30 | . . . . . . . . . 4 . 3 . . 23 . . Distress Signals 28 | . . . . . . . . . 4 . 1 . . 23 . . Times Spotted 320 | . 9 34 25 . 6 7 27 34 29 8 45 . 10 19 31 36 Peak Tracking Total 22 | . 4 9 22 . 3 4 4 5 5 5 5 . 3 3 11 17 Tactical Retreats 6 | . . 1 . . . . . 2 1 . 2 . . . . . Traps | -11 -10 -9 -9 -9 -8 -8 -7 -6 -6 -6 -5 -4 -4 -3 -3 -3 ------- Run | Yrd Mat Mat Min Exi Min Mat Fac Fac Ext Cet Fac Fac DSF Res Gar Tes Traps Triggered 7 | . . . . . . 1 3 . . . . 1 . 1 . 1 Indirectly . | . . . . . . . . . . . . . . . . . Trap Hack Attempts . | . . . . . . . . . . . . . . . . . Triggered . | . . . . . . . . . . . . . . . . . Disarmed . | . . . . . . . . . . . . . . . . . Reprogrammed . | . . . . . . . . . . . . . . . . . Reused . | . . . . . . . . . . . . . . . . . Traps Extracted . | . . . . . . . . . . . . . . . . . Installed . | . . . . . . . . . . . . . . . . . Triggered . | . . . . . . . . . . . . . . . . . Machines | -11 -10 -9 -9 -9 -8 -8 -7 -6 -6 -6 -5 -4 -4 -3 -3 -3 ---------- Run | Yrd Mat Mat Min Exi Min Mat Fac Fac Ext Cet Fac Fac DSF Res Gar Tes Machines Disabled 52 | . . 1 . . . . 8 19 5 . 12 . 1 2 4 . Max in Single Turn 4 | . . . . . . . 4 4 1 . 2 . 1 . 1 . Garrison Access 3 | . . . . . . . 1 1 . . 1 . . . . . Garrison Relay 1 | . . . . . . . . . . . . . . . 1 . Machines Repaired . | . . . . . . . . . . . . . . . . . Machines Dismantled . | . . . . . . . . . . . . . . . . . Machines Sabotaged . | . . . . . . . . . . . . . . . . . Overloaded Fab Kills . | . . . . . . . . . . . . . . . . . Hacking | -11 -10 -9 -9 -9 -8 -8 -7 -6 -6 -6 -5 -4 -4 -3 -3 -3 --------- Run | Yrd Mat Mat Min Exi Min Mat Fac Fac Ext Cet Fac Fac DSF Res Gar Tes Machines Accessed 55 | . 1 5 . . . 3 12 11 10 . 6 2 . 4 1 . Terminals 37 | . 1 4 . . . 3 7 6 10 . 2 1 . 2 1 . Fabricators 3 | . . . . . . . 1 2 . . . . . . . . Repair Stations 4 | . . . . . . . 1 1 . . 1 . . 1 . . Recycling Units 4 | . . 1 . . . . 1 . . . 2 . . . . . Scanalyzers 2 | . . . . . . . 1 1 . . . . . . . . Garrison Access 5 | . . . . . . . 1 1 . . 1 1 . 1 . . Total Hacks 174 | . 6 17 . . . 14 29 40 31 . 24 3 . 6 4 . Successful 92 | . 2 10 . . . 6 17 22 17 . 15 1 . 1 1 . Failed 82 | . 4 7 . . . 8 12 18 14 . 9 2 . 5 3 . Catastrophic 12 | . . 1 . . . . 3 2 2 . 3 . . 1 . . Database Lockouts . | . . . . . . . . . . . . . . . . . Manual 101 | . 6 11 . 1 . 13 19 25 18 . 8 . . . . . Terminals 131 | . 6 14 . . . 14 23 27 31 . 9 1 . 2 4 . Fabricators 3 | . . . . . . . 1 2 . . . . . . . . Repair Stations 18 | . . . . . . . 2 5 . . 9 . . 2 . . Recycling Units 9 | . . 3 . . . . 1 . . . 5 . . . . . Scanalyzers 4 | . . . . . . . 1 3 . . . . . . . . Garrison Access 9 | . . . . . . . 1 3 . . 1 2 . 2 . . Terminal Hacks 24 | . . 3 . . . 3 3 4 8 . 1 1 . . 1 . Record 2 | . . 1 . . . . . . . . 1 . . . . . Robot Analysis 2 | . . . . . . 2 . . . . . . . . . . Prototype ID Bank 5 | . . 2 . . . 1 1 . 1 . . . . . . . Open Door 5 | . . . . . . . . 1 3 . . . . . 1 . Open DSF 1 | . . . . . . . . . . . . 1 . . . . Branch Access Points 1 | . . . . . . . . 1 . . . . . . . . Terminal Index 1 | . . . . . . . . 1 . . . . . . . . Alert Level 1 | . . . . . . . 1 . . . . . . . . . Locate Traps 1 | . . . . . . . . . 1 . . . . . . . Maintenance Status 1 | . . . . . . . . . 1 . . . . . . . Security Status 1 | . . . . . . . . 1 . . . . . . . . Recall Investigation 1 | . . . . . . . . . 1 . . . . . . . Hauler Manifests 2 | . . . . . . . 1 . 1 . . . . . . . Fabricator Hacks 1 | . . . . . . . . 1 . . . . . . . . Network Status 1 | . . . . . . . . 1 . . . . . . . . Repair Station Hacks 11 | . . . . . . . 2 3 . . 6 . . . . . Scan Component 6 | . . . . . . . 1 2 . . 3 . . . . . Repair 5 | . . . . . . . 1 1 . . 3 . . . . . Recycling Unit Hacks 6 | . . 2 . . . . 1 . . . 3 . . . . . Process 1 | . . . . . . . . . . . 1 . . . . . Report Inventory 3 | . . 1 . . . . 1 . . . 1 . . . . . Retrieve Matter 1 | . . . . . . . . . . . 1 . . . . . Retrieve Components 1 | . . 1 . . . . . . . . . . . . . . Scanalyzer 3 | . . . . . . . . 3 . . . . . . . . Retrieve Study 3 | . . . . . . . . 3 . . . . . . . . Garrison Access Hacks 4 | . . . . . . . 1 1 . . 1 . . 1 . . Unlock Access 1 | . . . . . . . . . . . . . . 1 . . Seal Access 3 | . . . . . . . 1 1 . . 1 . . . . . Unauthorized Hacks 43 | . 2 5 . . . 3 10 10 9 . 4 . . . . . Terminals 43 | . 2 5 . . . 3 10 10 9 . 4 . . . . . Assimilate 2 | . . . . . . . . 2 . . . . . . . . Botnet 22 | . 1 3 . . . 2 5 4 5 . 2 . . . . . Operators 1 | . . . . . . . . 1 . . . . . . . . Skim 18 | . 1 2 . . . 1 5 3 4 . 2 . . . . . Fabricators . | . . . . . . . . . . . . . . . . . Repair Stations . | . . . . . . . . . . . . . . . . . Recycling Units . | . . . . . . . . . . . . . . . . . Scanalyzers . | . . . . . . . . . . . . . . . . . Garrison Access . | . . . . . . . . . . . . . . . . . Data Cores Recovered 2 | . . . . . . . . . . . 1 . . 1 . . Used 1 | . . . . . . . . . . . 1 . . . . . Hacking Detections 41 | . 1 5 . . . 3 9 9 6 . 3 1 . 3 1 . Full Trace Events 2 | . . . . . . . 1 1 . . . . . . . . Feedback Events . | . . . . . . . . . . . . . . . . . Feedback Blocked . | . . . . . . . . . . . . . . . . . Robot Schematics Acquired . | . . . . . . . . . . . . . . . . . Robots Built . | . . . . . . . . . . . . . . . . . Authchips . | . . . . . . . . . . . . . . . . . Time . | . . . . . . . . . . . . . . . . . Total Robot Build Rating . | . . . . . . . . . . . . . . . . . Part Schematics Acquired . | . . . . . . . . . . . . . . . . . Parts Built . | . . . . . . . . . . . . . . . . . Authchips . | . . . . . . . . . . . . . . . . . Time . | . . . . . . . . . . . . . . . . . Total Part Build Rating . | . . . . . . . . . . . . . . . . . Part Studies Acquired 3 | . . . . . . . . 3 . . . . . . . . Parts Repaired 5 | . . . . . . . 1 1 . . 3 . . . . . Time 235 | . . . . . . . 44 53 . . 138 . . . . . Parts Recycled . | . . . . . . . . . . . . . . . . . Recycled Matter 19 | . . . . . . . . . . . 19 . . . . . Retrieved Matter 19 | . . . . . . . . . . . 19 . . . . . Retrieved Components 10 | . . 10 . . . . . . . . . . . . . . Parts Scanalyzed . | . . . . . . . . . . . . . . . . . Part Schematics Acquired . | . . . . . . . . . . . . . . . . . Parts Damaged . | . . . . . . . . . . . . . . . . . Bothacking | -11 -10 -9 -9 -9 -8 -8 -7 -6 -6 -6 -5 -4 -4 -3 -3 -3 ------------ Run | Yrd Mat Mat Min Exi Min Mat Fac Fac Ext Cet Fac Fac DSF Res Gar Tes Used RIF Installer . | . . . . . . . . . . . . . . . . . Robots Hacked . | . . . . . . . . . . . . . . . . . Non-combat . | . . . . . . . . . . . . . . . . . Combat . | . . . . . . . . . . . . . . . . . Robot Hacks Applied . | . . . . . . . . . . . . . . . . . Relay Couplers Released 5 | . . . . . . . . . . . . . . . 5 . Machine Destruction 5 | . . . . . . . . . . . . . . . 5 . Fabnet Peak Effective % . | . . . . . . . . . . . . . . . . . Robots Rewired 5 | . . . . . . . . . 3 . . . . . 2 . Allies Hacked . | . . . . . . . . . . . . . . . . . Hacks Repelled . | . . . . . . . . . . . . . . . . . Allies | -11 -10 -9 -9 -9 -8 -8 -7 -6 -6 -6 -5 -4 -4 -3 -3 -3 -------- Run | Yrd Mat Mat Min Exi Min Mat Fac Fac Ext Cet Fac Fac DSF Res Gar Tes Total Allies 8 | . 1 . . . . . . . 5 . . . . . 2 . Largest Group 5 | . 1 1 1 1 1 1 1 1 5 1 1 1 1 1 3 1 Highest-Rated Group 259 | . 56 68 66 66 70 85 89 97 189 117 129 126 144 175 259 177 Highest-Rated Ally 184 | . 56 68 66 66 70 85 89 97 100 117 129 126 144 175 184 177 Initial Warlord ECA Mod 10 | . . . . . . . . . . . . . . 9 9 10 Total Orders . | . . . . . . . . . . . . . . . . . Ally Attacks 407 | . 31 35 6 . 4 5 33 40 44 21 87 . 18 14 50 19 Total Damage 23384 | . 214 1610 210 . 92 280 2000 2793 2148 999 5428 . 909 1291 4338 1072 Kills 164 | . 2 26 3 . 2 5 18 20 17 4 32 . 7 7 17 4 Allies Corrupted 1 | . . . . . . . . . 1 . . . . . . . Allies Melted 1 | . . . . . . . . . 1 . . . . . . . Intel | -11 -10 -9 -9 -9 -8 -8 -7 -6 -6 -6 -5 -4 -4 -3 -3 -3 ------- Run | Yrd Mat Mat Min Exi Min Mat Fac Fac Ext Cet Fac Fac DSF Res Gar Tes Active Infowar (turns) 6578 | 31 301 805 138 280 71 . . 346 1158 314 1853 74 266 518 423 . Seismic 1626 | 31 301 805 138 280 71 . . . . . . . . . . . Cloaking 609 | . . . . . . . . . . . . . . 349 260 . Jamming 4952 | . . . . . . . . 346 1158 314 1853 74 266 518 423 . Robot Analysis Total 2 | . . . . . . 2 . . . . . . . . . . Derelict Logs Recovered . | . . . . . . . . . . . . . . . . . Drone Launches . | . . . . . . . . . . . . . . . . . Drone Recoveries . | . . . . . . . . . . . . . . . . . Exploration | -11 -10 -9 -9 -9 -8 -8 -7 -6 -6 -6 -5 -4 -4 -3 -3 -3 ------------- Run | Yrd Mat Mat Min Exi Min Mat Fac Fac Ext Cet Fac Fac DSF Res Gar Tes Turns Passed 11179 | 119 301 805 138 280 203 571 1731 1667 1158 314 1941 74 280 518 823 256 Spaces Moved 6339 | 84 142 432 98 225 129 291 1084 1043 665 160 946 60 142 330 428 80 Core 13 | 13 . . . . . . . . . . . . . . . . Treads . | . . . . . . . . . . . . . . . . . Legs 6326 | 71 142 432 98 225 129 291 1084 1043 665 160 946 60 142 330 428 80 Wheels . | . . . . . . . . . . . . . . . . . Hover . | . . . . . . . . . . . . . . . . . Flight . | . . . . . . . . . . . . . . . . . Fastest Speed 50 | 50 120 120 120 120 120 120 120 122 112 112 120 120 114 115 120 124 Average Speed 126 | 109 120 120 120 120 120 174 123 122 120 133 138 120 124 115 124 128 Slowest Speed 190 | 120 120 120 120 120 120 190 190 122 122 190 190 120 184 120 130 190 Overloaded Moves . | . . . . . . . . . . . . . . . . . Propulsion Burnouts . | . . . . . . . . . . . . . . . . . Robots Hopped . | . . . . . . . . . . . . . . . . . Potential Cave-ins . | . . . . . . . . . . . . . . . . . Cave-ins Triggered . | . . . . . . . . . . . . . . . . . Exploration Rate (%) 35 | 4 27 50 30 61 36 27 35 23 76 56 23 2 85 11 47 16 Regions Visited 16 Branch Regions 6 Pre-discovered Areas 1 | . . . 1 . . . . . . . . . . . . . Known Exits Taken 3 | . . . . . . . . 1 . . . 1 . 1 . . Unknown Exits Taken 11 | 1 1 1 1 1 1 1 1 . 1 1 1 . . . . . Scrap Searched . | . . . . . . . . . . . . . . . . . Spaces Dug 26 | . . . 8 . . . . 18 . . . . . . . . Terrain Destroyed 492 | . . . 8 . . 11 85 169 56 39 47 . . 10 48 19 Melee . | . . . . . . . . . . . . . . . . . Projectile 231 | . . . . . . 2 34 47 16 8 47 . . 10 48 19 AOE 261 | . . . 8 . . 9 51 122 40 31 . . . . . . Terrain Rammed . | . . . . . . . . . . . . . . . . . Walls Destroyed . | . . . . . . . . . . . . . . . . . Machines Disabled . | . . . . . . . . . . . . . . . . . Actions | -11 -10 -9 -9 -9 -8 -8 -7 -6 -6 -6 -5 -4 -4 -3 -3 -3 --------- Run | Yrd Mat Mat Min Exi Min Mat Fac Fac Ext Cet Fac Fac DSF Res Gar Tes Total 8486 | 100 219 647 109 234 165 346 1357 1314 940 217 1363 61 197 436 601 180 Wait 1229 | 2 35 141 3 2 17 34 181 177 119 25 262 . 19 70 79 63 Move 6323 | 83 141 431 97 224 128 290 1083 1042 664 159 945 59 141 329 427 80 Hop . | . . . . . . . . . . . . . . . . . Pick Up 70 | 3 2 12 . 5 1 2 9 4 3 2 12 . 4 3 8 . Fast Attach 59 | 7 . 4 . 1 1 3 3 4 1 7 14 . 3 3 4 4 Attach 38 | . . 1 1 . . 1 2 6 2 5 6 1 . 2 5 6 Detach 10 | . . 2 . . . 2 1 1 1 1 . . 1 . . 1 Swap 112 | . 2 4 2 1 4 2 12 18 14 1 23 1 4 7 17 . Drop 107 | . 5 9 . 1 6 5 16 11 10 1 16 . 5 8 11 3 Fire 443 | 5 34 43 5 . 8 7 50 51 35 16 85 . 20 14 47 23 Melee . | . . . . . . . . . . . . . . . . . Ram . | . . . . . . . . . . . . . . . . . Kick 1 | . . . 1 . . . . . . . . . . . . . Crush . | . . . . . . . . . . . . . . . . . Escape Stasis . | . . . . . . . . . . . . . . . . . Rewire 94 | . . . . . . . . . 91 . . . . . 3 . Trap . | . . . . . . . . . . . . . . . . . Miscellaneous . | . . . . . . . . . . . . . . . . . Route ------- -11/Scrapyard -10/Materials -9/Materials (discovered 2 exits: *Mat / [*Min]) -9/Mines (discovered 2 exits: *Mat / *Exi) -9/Exiles -8/Mines -8/Materials -7/Factory (discovered 3 exits: *Fac x2 / [*Low]) -6/Factory (discovered 5 exits: *Fac / Low x2 / *Ext x2) -6/Extension (discovered 3 exits: *Fac x2 / *Cet) -6/Cetus (discovered 2 exits: *Fac / [*Arc]) -5/Factory (discovered 2 exits: *Fac x2) -4/Factory -4/DSF -3/Research -3/Garrison -3/Testing History --------- Turn | Location | Event 12 | -11/Scrapyard | Discovered new exit (range 13) 120 | -11/Scrapyard | Entered Materials 217 | -10/Materials | Core integrity fell below 50% 270 | -10/Materials | Core integrity fell below 20% 318 | -10/Materials | Build established: Mutant 400 | -10/Materials | Discovered new exit (range 16) 421 | -10/Materials | Entered another Materials area 421 | -9/Materials | Evolved 2 slots: Propulsion x1, Utility x1 731 | -9/Materials | Build established: Scavenger-Mutant 782 | -9/Materials | Discovered new exit (range 16) 1161 | -9/Materials | Discovered new exit (range 16) 1226 | -9/Materials | Entered Mines 1227 | -9/Mines | Assembled infested the area 1229 | -9/Mines | Met a Derelict bent on vengeance 1238 | -9/Mines | Discovered new exit (range 10) 1239 | -9/Mines | Met 8R-AWN 1240 | -9/Mines | Learned location of Storage (-7) 1358 | -9/Mines | Discovered new exit (range 5) 1364 | -9/Mines | Entered Exiles 1393 | -9/Exiles | Welcomed by 8R-AWN 1414 | -9/Exiles | Met EX-HEX 1446 | -9/Exiles | Met EX-BIN 1463 | -9/Exiles | Aligned with FarCom system 1464 | -9/Exiles | Given EX-Vault access code 1496 | -9/Exiles | Opened EX-Vault 1504 | -9/Exiles | Found Prototype Storage 1504 | -9/Exiles | Identified Superbattery 1526 | -9/Exiles | Found Prototype Device 1551 | -9/Exiles | Warned to stay clear of 0b10 Research branches 1589 | -9/Exiles | Met EX-DEC 1632 | -9/Exiles | Discovered new exit (range 12) 1644 | -9/Exiles | Left Exiles lab with Supersonic Drone Bay 1644 | -9/Exiles | Entered Mines 1787 | -8/Mines | Discovered new exit (range 15) 1847 | -8/Mines | Entered Materials 1847 | -8/Materials | Evolved 2 slots: Propulsion x1, Utility x1 2121 | -8/Materials | Garrison activated, responded to threat 2222 | -8/Materials | Discovered new exit (range 10) 2418 | -8/Materials | Entered Factory 2418 | -7/Factory | Evolved 2 slots: Utility x1, Weapon x1 2482 | -7/Factory | Discovered new exit (range 15) 2665 | -7/Factory | Repaired Imp. Shield Generator 2955 | -7/Factory | Build established: Scavenger-Tank 3444 | -7/Factory | Discovered new exit (range 15) 4056 | -7/Factory | Discovered new exit (range 9) 4149 | -7/Factory | Entered another Factory area 4149 | -6/Factory | Evolved 2 slots: Utility x1, Weapon x1 4316 | -6/Factory | Identified Supersonic Drone Bay 4565 | -6/Factory | Discovered new exit (range 6) 4826 | -6/Factory | Garrison activated, responded to threat 5134 | -6/Factory | Repaired Broken Hvy. Assault Cannon 5349 | -6/Factory | Spotted B-75 Beast 5575 | -6/Factory | Identified exit to Lower Caves 5575 | -6/Factory | Identified exit to Extension 5684 | -6/Factory | Discovered new exit (range 11) 5721 | -6/Factory | Build established: Scavenger-Skirmisher 5816 | -6/Factory | Entered Extension 5827 | -6/Extension | Rescued a captive Derelict 5828 | -6/Extension | Rescued a captive Derelict 5828 | -6/Extension | Rescued a captive Derelict 5830 | -6/Extension | Rescued a captive Derelict 5832 | -6/Extension | Rescued a captive Derelict 5840 | -6/Extension | Rescued a captive Derelict 5841 | -6/Extension | Rescued a captive Derelict 5842 | -6/Extension | Rescued a captive Derelict 5843 | -6/Extension | Rescued a captive Derelict 5844 | -6/Extension | Rescued a captive Derelict 5850 | -6/Extension | Rescued a captive Derelict 5850 | -6/Extension | Rescued a captive Derelict 5854 | -6/Extension | Rescued a captive Derelict 6166 | -6/Extension | First assault squad dispatched 6416 | -6/Extension | Build established: Skirmisher 6418 | -6/Extension | Discovered new exit (range 14) 6566 | -6/Extension | Extracted ID and sensor layout for unrecognized location from A7's data core 6641 | -6/Extension | Lost 3 allies 6717 | -6/Extension | Build established: Scavenger-Skirmisher 6845 | -6/Extension | Discovered new exit (range 10) 6847 | -6/Extension | Discovered new exit (range 6) 6873 | -6/Extension | System corruption reached 10% 6903 | -6/Extension | Lost 3 parts (3u) 6974 | -6/Extension | Entered Cetus 6988 | -6/Cetus | Spotted Cetus Guard 6988 | -6/Cetus | Spotted Cetus Guard 6993 | -6/Cetus | Destroyed Cetus Guard 6993 | -6/Cetus | Spotted Cetus Guard 6997 | -6/Cetus | Destroyed Cetus Guard 6999 | -6/Cetus | Spotted Cetus Guard 7010 | -6/Cetus | Allies destroyed Cetus Guard 7015 | -6/Cetus | Destroyed Cetus Guard 7119 | -6/Cetus | Discovered new exit (range 15) 7143 | -6/Cetus | Spotted Cetus Guard 7143 | -6/Cetus | Spotted Cetus Guard 7146 | -6/Cetus | Spotted Cetus Guard 7146 | -6/Cetus | Spotted Cetus Guard 7149 | -6/Cetus | Destroyed Cetus Guard 7153 | -6/Cetus | Allies destroyed Cetus Guard 7186 | -6/Cetus | Allies destroyed Cetus Guard 7197 | -6/Cetus | Discovered new exit (range 15) 7205 | -6/Cetus | Lost 9 parts (3n2u4w) 7205 | -6/Cetus | Met Revision 17 7288 | -6/Cetus | Entered Factory 7288 | -5/Factory | Evolved 2 slots: Propulsion x1, Utility x1 7502 | -5/Factory | Build established: Scavenger-Tank 7772 | -5/Factory | Repaired Hcp. Matter Pod 7811 | -5/Factory | Repaired Carbon-fiber Leg 7886 | -5/Factory | Repaired Quantum Reactor 8016 | -5/Factory | Spotted B-75 Beast 8033 | -5/Factory | Allies destroyed B-75 Beast 8188 | -5/Factory | First assault squad dispatched 8321 | -5/Factory | Discovered new exit (range 4) 8392 | -5/Factory | Discovered new exit (range 8) 8834 | -5/Factory | Lost 8 parts (2n2u4w) 9015 | -5/Factory | System corruption reached 10% 9035 | -5/Factory | Core integrity fell below 50% 9055 | -5/Factory | Lost 3 parts (2u1w) 9229 | -5/Factory | Entered another Factory area 9229 | -4/Factory | Evolved 2 slots: Power x1, Utility x1 9303 | -4/Factory | Identified exit to DSF 9303 | -4/Factory | Entered DSF 9337 | -4/DSF | Additional patrols routed to DSF 9394 | -4/DSF | Discovered new exit (range 15) 9536 | -4/DSF | Sterilization system engaged 9556 | -4/DSF | Ambient heat levels rising (+10) 9571 | -4/DSF | Ambient heat levels rising (+10) 9583 | -4/DSF | Entered Research 9583 | -3/Research | Evolved 2 slots: Propulsion x1, Utility x1 9779 | -3/Research | Build established: Scavenger-Gunner 9783 | -3/Research | Revision forces began assault on 0b10 9817 | -3/Research | Met up with Revision 17++ 10095 | -3/Research | Identified exit to Garrison 10101 | -3/Research | Entered Garrison 10219 | -3/Garrison | Triggered checkpoint 10299 | -3/Garrison | Garrison Relay disabled 10343 | -3/Garrison | Spotted B-86 Titan 10372 | -3/Garrison | Allies destroyed B-86 Titan 10482 | -3/Garrison | Spotted B-86 Titan 10489 | -3/Garrison | Triggered checkpoint 10507 | -3/Garrison | Triggered checkpoint 10532 | -3/Garrison | Triggered checkpoint 10646 | -3/Garrison | Discovered new exit (range 10) 10924 | -3/Garrison | Entered Testing 10925 | -3/Testing | Maximum security lockdown engaged 11134 | -3/Testing | Lost 6 parts (2n1u3w) 11158 | -3/Testing | Core integrity fell below 50% 11171 | -3/Testing | Core integrity fell below 20% 11180 | -3/Testing | Destroyed by G-67 Veteran with Field Laser Last Messages --------------- 11172_ Graviton Reactor destroyed. 11173_ Player 2 acquires Lgt. Quantum Reactor. 11173_ B-74 Champion destroyed. 11175_ Overheating: Energy bleed (-61). 11176_ Player 2 attaches Lgt. Quantum Reactor. 11176_ Destroyed Wheel. 11176_ M-36 Artificer system corrupted by crushing effect. 11176_ G-67 Veteran Plasma Rifle blasted off. 11176_ G-67 Veteran knocked back. 11176_ G-67 Veteran destroyed. 11176_ M-36 Artificer suffers critical hit (Blast). 11176_ Lgt. Angular Momentum Engine fried. 11176_ M-36 Artificer destroyed. 11178_ Player 2 Lgt. Quantum Reactor blown off. 11178_ Player 2 Myomer Leg blown off. 11178_ E-15 Imp destroyed. 11178_ Flexi-carbon Leg destroyed. 11179_ P-80 Master resets G-73 Enforcer, system corruption cleaned. 11180_ Overheating: Energy bleed (-60). 11180_ G-73 Enforcer knocked back. Map ----- +----------------------------------------------------+ | ??????? "" """ # """ "#??????? | | ????????"" """ # """ #??????? | | ?????????" """?# """ #??????? | | ????????? ?# """ #########??????? | | ?????????####??# """ #??????????????? | | ???????????????# """ ###########+#### | | ???????????????+ """ | | ???????????????# """ | | ???????????????# | | ???????????????# """"" "" | | ???????????????########+######[[ """"" "" | | ???????????????????# #[[ """"" "" | | ???????????????????# #[ """"" "" | | ???????????????????# # | | ???????????????????# + | | ???????????????????# # | | ???????????????????# """ """ # | | ????????#?????????## """ """ # ######## | | ????????# ???#####*#%"""l""" # #? """ | | ????????# ;###;#[;=/#*##;;#;## #? ""T | | ????????# !%![%/^=!*[= ppp # | | ????????+ %[=ggg*=@=%" g # | | ????????# % %[=![g!b%!%"%" g / | | ????????# "%% [%/!=*g[b=%e%" g g # """ "" | | ????????## ###*!%!=*##=]!#+### ### """ "" | | ?????????# ??###=@![]!=[ # #???""" "? | | ?????????# ????## ] *[= # #??? ? | | ?????????# ?????# """ """ # #???? ? | | ?????????# ?????# """ """ # #???? | | ?????????# ?????# """ """ # #????? | | ?????????+??????# """ """ # #?????###? | | ????????????????# """ """ # #????????? | | ????????????????# ??? # #????????? | | ????????????????# ! ??? # #????????? | | ????????????????? ??? # ????????? | | ?????????????????= ????? # ????????? | | ????????????????? = ????? ###?????????? | | ?????????????????######?????##???????????? | | ?????????????????????????????????????????? | | ?????????????????????????????????????????? | | ?????????????????????????????????????????? | | ?????????????????????????????????????????? | | ?????????????????????????????????????????? | | ?????????????????????????????????????????? | | ?????????????????????????????????????????? | | ?????????????????????????????????????????? | | ?????????????????????????????????????????? | | ?????????????????????????????????????????? | | ?????????????????????????????????????????? | | ?????????????????????????????????????????? | +----------------------------------------------------+ Best States ------------- Heat Dissipation 77 Energy Generation 47 Energy Capacity 590 Matter Stores 300 Matter Capacity 300 Sight Range 16 Terrain Scan Density 10 Jamming Range 14 Cloak Strength 2 Armor Coverage 675 Resistance: TH 25 Evasion (%) 70 Targeting Accuracy 6 Target Analysis 12 Offensive Hacking 10 Defensive Hacking 12 Item Schematics ----------------- None Robot Schematics ------------------ None Fabricated ------------ Nothing Repaired ---------- Imp. Shield Generator | 57% | -7/Factory Hvy. Assault Cannon | 12% | -6/Factory | Broken Hcp. Matter Pod | 2% | -5/Factory Carbon-fiber Leg | 30% | -5/Factory Quantum Reactor | 43% | -5/Factory Studied --------- Hvy. Assault Cannon | -6/Factory | Hacked Gauss Cannon | -6/Factory | Hacked Adv. Assault Cannon | -6/Factory | Hacked Alien Tech Used ----------------- None Achievements -------------- None Challenges ------------ None Player 2 | -11 -10 -9 -9 -9 -8 -8 -7 -6 -6 -6 -5 -4 -4 -3 -3 -3 ---------- Run | Yrd Mat Mat Min Exi Min Mat Fac Fac Ext Cet Fac Fac DSF Res Gar Tes Slots Evolved 14 | . 2 . . . 2 2 2 . . 2 2 . 2 . . . Power 1 | . . . . . 1 . . . . . . . . . . . Propulsion 3 | . 1 . . . . . 1 . . 1 . . . . . . Utility 8 | . . . . . . 2 1 . . 1 2 . 2 . . . Weapon 2 | . 1 . . . 1 . . . . . . . . . . . Parts Attached 211 | . 14 28 2 . 1 16 16 9 9 5 30 . 19 16 23 23 Parts Lost 58 | . 4 2 1 . . 2 2 2 2 . 8 . 12 . 8 15 Damage Taken 10300 | . 449 559 243 . . 255 688 514 470 232 1797 . 1313 95 1348 2337 Core 2070 | . 187 85 45 . . 47 105 28 81 26 400 . 212 . 148 706 Player 2/Cogmind (%) 68 | . 86 75 100 . . 100 58 32 100 24 72 . 81 . 46 79 Absorbed by Shields 736 | . . . . . . . . . . . 645 . 91 . . . Damage Inflicted 22664 | . 214 1610 210 . 92 280 2000 2793 1682 999 5428 . 909 1291 4084 1072 Player 2/Cogmind (%) 48 | . 36 76 48 . 42 42 51 44 32 45 55 . 55 61 53 29 Combat Hostiles Destroyed 127 | . 2 21 3 . 2 4 13 12 12 4 23 . 7 4 16 4 Player 2/Cogmind (%) 52 | . 25 80 75 . 33 57 54 40 44 50 56 . 87 57 53 23 Game ------ Seed ArchitectSlugTendrils Manual? 0 Play Time 01:58:27 Cumulative 54.2 hours Start 2026.02.25 @ 18:44:58 End 2026.02.25 @ 21:08:13 Sessions 8 Manual Loads 0 Difficulty Rogue Special Mode AFD2020/Player2 Game No. 92 Rogue 92 Adventurer 0 Explorer 0 Win Type - Total 0 Types 0/0/0/0/0/0/0/0/0/0 Lore% 32 Gallery% 37 Achievement% 29 Wizard Run 0 Options --------- Layout 0 ASCII 1 Keyboard 1 Movement Numpad Keybinds 0 Fullscreen 1 Font 18/VGA_Max Map View 76x50 Zoom Use 0% Tactical HUD 1 Map Filters NONE Filters NONE Steam 1 RUN: 110e0d5c-6bb7-469b-b2da-ec59095c3cef